[Event "FIDE Women World Blitz 2021"]
[Site "Warsaw"]
[Date "2021.12.30"]
[Round "12.10"]
[White "Zabrzanska, Weronika"]
[Black "Heredia Serrano, Carla"]
[Result "1-0"]
[ECO "B12"]
[WhiteElo "1596"]
[BlackElo "2138"]
[Annotator "NA"]
[PlyCount "74"]
[EventDate "2021.12.29"]
[EventType "swiss"]
[EventCountry "POL"]
[Tiebreak "Cut1 Buchholz"]
[SourceTitle "playchess.com"]
[Source "ChessBase"]
[SourceQuality "1"]
[TimeControl "180+2"]

1. e4 {[%emt 0:00:01]} c6 {[%emt 0:00:02]} 2. d4 {[%emt 0:00:01]} d5 {[%emt 0:
00:01]} 3. e5 {[%emt 0:00:01]} c5 {[%emt 0:00:01]} 4. dxc5 {[%emt 0:00:04]} e6
{[%emt 0:00:03]} 5. Nf3 {[%emt 0:00:01]} Bxc5 {[%emt 0:00:01]} 6. a3 {[%emt 0:
00:01]} Ne7 {[%emt 0:00:05]} 7. b4 {[%emt 0:00:02]} Bb6 {[%emt 0:00:02]} 8. Bb2
{[%emt 0:00:02]} a5 {[%emt 0:00:06]} 9. Bd3 {[%emt 0:00:07]} axb4 {[%emt 0:00:
16]} 10. axb4 {[%emt 0:00:02]} Rxa1 {[%emt 0:00:01]} 11. Bxa1 {[%emt 0:00:01]}
Nd7 {[%emt 0:00:02]} 12. O-O {[%emt 0:00:02]} Ng6 {[%emt 0:00:10]} 13. Nbd2 {
[%emt 0:00:17]} Nf4 {[%emt 0:00:10]} 14. Nb3 {[%emt 0:00:24]} O-O {[%emt 0:00:
29]} 15. c4 {[%emt 0:00:38]} Nxd3 {[%emt 0:00:43]} 16. Qxd3 {[%emt 0:00:01]}
dxc4 {[%emt 0:00:03]} 17. Qxc4 {[%emt 0:00:02]} Qe7 {[%emt 0:00:03]} 18. Rc1 {
[%emt 0:00:09]} h6 {[%emt 0:00:08]} 19. Nbd4 {[%emt 0:00:06]} Nb8 {[%emt 0:00:
20]} 20. Nb5 {[%emt 0:00:17]} Bd7 {[%emt 0:00:06]} 21. Nd6 {[%emt 0:00:03]} Bc6
{[%emt 0:00:01]} 22. Rc3 {[%emt 0:00:35]} Bd5 {[%emt 0:00:04]} 23. Qb5 {
[%emt 0:00:08]} Bc7 {[%emt 0:00:29]} 24. Nxb7 {[%emt 0:00:20]} Nc6 {[%emt 0:00:
08]} 25. Rxc6 {[%emt 0:00:21]} Bxc6 {[%emt 0:00:02]} 26. Qxc6 {[%emt 0:00:00]}
Ra8 {[%emt 0:00:04]} 27. Bc3 {[%emt 0:00:04]} Bd8 {[%emt 0:00:05]} 28. h3 {
[%emt 0:00:04]} Ra2 {[%emt 0:00:03]} 29. Nd4 {[%emt 0:00:02]} Qh4 {[%emt 0:00:
06]} 30. Be1 {[%emt 0:00:03]} Ra1 {[%emt 0:00:01]} 31. Qc3 {[%emt 0:00:01]} Rb1
{[%emt 0:00:03]} 32. Ne2 {[%emt 0:00:01]} Qe4 {[%emt 0:00:03]} 33. Kf1 {
[%emt 0:00:02]} Kh7 {[%emt 0:00:03]} 34. Nxd8 {[%emt 0:00:01]} Rd1 {[%emt 0:00:
02]} 35. Nxf7 {[%emt 0:00:01]} Rd3 {[%emt 0:00:02]} 36. Qc2 {[%emt 0:00:03]}
Qd5 {[%emt 0:00:02]} 37. Nd6 {[%emt 0:00:03]} Kg8 {[%emt 0:00:02]} 1-0

[Event "FIDE Women World Blitz 2021"]
[Site "Warsaw"]
[Date "2021.12.30"]
[Round "12.11"]
[White "Salimova, Nurgyul"]
[Black "Shuvalova, Polina"]
[Result "1/2-1/2"]
[ECO "D00"]
[WhiteElo "2353"]
[BlackElo "2515"]
[Annotator "ChessBase"]
[PlyCount "99"]
[EventDate "2021.12.29"]
[EventType "swiss"]
[EventCountry "POL"]
[Tiebreak "Cut1 Buchholz"]
[SourceTitle "playchess.com"]
[Source "ChessBase"]
[SourceQuality "1"]
[TimeControl "180+2"]

1. d4 {[%emt 0:00:02]} Nf6 {[%emt 0:00:01]} 2. Nc3 {[%emt 0:00:01]} d5 {
[%emt 0:00:01]} 3. Bf4 {[%emt 0:00:01]} e6 {[%emt 0:00:01]} 4. Nb5 {[%emt 0:00:
04]} Na6 {[%emt 0:00:01]} 5. e3 {[%emt 0:00:04]} c6 {[%emt 0:00:02]} 6. Nc3 {
[%emt 0:00:01]} Nc7 {[%emt 0:00:12]} 7. Bd3 {[%emt 0:00:04]} Bd6 {[%emt 0:00:
03]} 8. Nf3 {[%emt 0:00:06]} O-O {[%emt 0:00:01]} 9. O-O {[%emt 0:00:04]} Re8 {
[%emt 0:00:02]} 10. Bxd6 {[%emt 0:00:14]} Qxd6 {[%emt 0:00:02]} 11. e4 {
[%emt 0:00:02]} dxe4 {[%emt 0:00:06]} 12. Nxe4 {[%emt 0:00:01]} Nxe4 {[%emt 0:
00:02]} 13. Bxe4 {[%emt 0:00:02]} h6 {[%emt 0:00:03]} 14. c3 {[%emt 0:00:17]}
Nd5 {[%emt 0:00:03]} 15. Re1 {[%emt 0:00:04]} b6 {[%emt 0:00:06]} 16. Ne5 {
[%emt 0:00:04]} Bb7 {[%emt 0:00:03]} 17. Qf3 {[%emt 0:00:08]} Re7 {[%emt 0:00:
05]} 18. Rad1 {[%emt 0:00:10]} Rc8 {[%emt 0:00:07]} 19. Bb1 {[%emt 0:00:08]}
Nf6 {[%emt 0:00:04]} 20. Qg3 {[%emt 0:00:06]} Rd8 {[%emt 0:00:12]} 21. Nd3 {
[%emt 0:00:11]} Qxg3 22. hxg3 {[%emt 0:00:01]} Red7 {[%emt 0:00:04]} 23. Bc2 {
[%emt 0:00:11]} g5 {[%emt 0:00:22]} 24. f3 {[%emt 0:00:03]} Kg7 {[%emt 0:00:01]
} 25. Kf2 {[%emt 0:00:01]} Nd5 {[%emt 0:00:05]} 26. g4 {[%emt 0:00:10]} Rc7 {
[%emt 0:00:05]} 27. Ne5 {[%emt 0:00:38]} Rcc8 {[%emt 0:00:09]} 28. Be4 {
[%emt 0:00:21]} Nf4 {[%emt 0:00:05]} 29. g3 {[%emt 0:00:04]} Nd5 {[%emt 0:00:
01]} 30. Bxd5 {[%emt 0:00:16]} cxd5 {[%emt 0:00:03]} 31. f4 {[%emt 0:00:02]} b5
{[%emt 0:00:04]} 32. a3 {[%emt 0:00:02]} a5 {[%emt 0:00:01]} 33. Nd3 {[%emt 0:
00:08]} Bc6 {[%emt 0:00:02]} 34. f5 {[%emt 0:00:07]} exf5 35. gxf5 {[%emt 0:00:
01]} Re8 {[%emt 0:00:12]} 36. Re5 {[%emt 0:00:07]} f6 {[%emt 0:00:04]} 37. Rxe8
{[%emt 0:00:02]} Rxe8 {[%emt 0:00:02]} 38. b4 {[%emt 0:00:05]} axb4 {[%emt 0:
00:03]} 39. axb4 {[%emt 0:00:02]} Ra8 {[%emt 0:00:01]} 40. Nc5 {[%emt 0:00:02]}
Ra2+ {[%emt 0:00:08]} 41. Kg1 {[%emt 0:00:02]} Rc2 {[%emt 0:00:02]} 42. Re1 {
[%emt 0:00:01]} Rxc3 {[%emt 0:00:08]} 43. Re7+ {[%emt 0:00:02]} Kg8 {[%emt 0:
00:04]} 44. Rc7 {[%emt 0:00:04]} Be8 {[%emt 0:00:05]} 45. Rc8 {[%emt 0:00:02]}
Kf7 {[%emt 0:00:19]} 46. Rc7+ {[%emt 0:00:01]} Kg8 {[%emt 0:00:01]} 47. Rc8 {
[%emt 0:00:01]} Kf7 {[%emt 0:00:13]} 48. Rc7+ {[%emt 0:00:02]} Kg8 {[%emt 0:00:
04]} 49. Rc8 {[%emt 0:00:05]} Kf7 {[%emt 0:00:26]} 50. Rc7+ {[%emt 0:00:01]}
1/2-1/2

[Event "FIDE Women World Blitz 2021"]
[Site "Warsaw"]
[Date "2021.12.30"]
[Round "12.11"]
[White "Kolaric, Spela"]
[Black "Brambilla, Renee Blandy T."]
[Result "1-0"]
[ECO "B20"]
[WhiteElo "2178"]
[BlackElo "1651"]
[Annotator "NA"]
[PlyCount "53"]
[EventDate "2021.12.29"]
[EventType "swiss"]
[EventCountry "POL"]
[Tiebreak "Cut1 Buchholz"]
[SourceTitle "playchess.com"]
[Source "ChessBase"]
[SourceQuality "1"]
[TimeControl "180+2"]

1. e4 {[%emt 0:00:01]} c5 {[%emt 0:00:00]} 2. Nc3 {[%emt 0:00:01]} g6 {[%emt 0:
00:02]} 3. f4 {[%emt 0:00:02]} Bg7 {[%emt 0:00:02]} 4. Nf3 {[%emt 0:00:01]} Nc6
{[%emt 0:00:02]} 5. g3 {[%emt 0:00:03]} e6 {[%emt 0:00:01]} 6. Bg2 {[%emt 0:00:
02]} Nge7 {[%emt 0:00:02]} 7. O-O {[%emt 0:00:02]} O-O {[%emt 0:00:05]} 8. Kh1
{[%emt 0:00:03]} Rb8 {[%emt 0:00:10]} 9. a4 {[%emt 0:00:02]} a6 {[%emt 0:00:02]
} 10. Qe2 {[%emt 0:00:06]} Re8 {[%emt 0:00:06]} 11. e5 {[%emt 0:00:26]} d5 {
[%emt 0:00:10]} 12. exd6 {[%emt 0:00:04]} Qxd6 {[%emt 0:00:03]} 13. Ne4 {
[%emt 0:00:02]} Qd5 {[%emt 0:00:31]} 14. c4 {[%emt 0:00:17]} Nd4 {[%emt 0:00:
10]} 15. Qd3 {[%emt 0:00:30]} Qc6 {[%emt 0:00:19]} 16. Ne5 {[%emt 0:00:02]} Qc7
{[%emt 0:00:34]} 17. Ng4 {[%emt 0:00:01]} Rd8 {[%emt 0:00:11]} 18. Ngf6+ {
[%emt 0:00:22]} Bxf6 {[%emt 0:00:01]} 19. Nxf6+ {[%emt 0:00:00]} Kg7 {[%emt 0:
00:01]} 20. Ne4 {[%emt 0:00:07]} Nef5 {[%emt 0:00:04]} 21. Qa3 {[%emt 0:00:26]}
Nc2 {[%emt 0:00:06]} 22. Qc3+ {[%emt 0:00:01]} Ncd4 {[%emt 0:00:04]} 23. b3 {
[%emt 0:00:00]} Kf8 {[%emt 0:00:09]} 24. Ba3 {[%emt 0:00:00]} Ne2 {[%emt 0:00:
06]} 25. Qh8+ {[%emt 0:00:00]} Ke7 {[%emt 0:00:04]} 26. Qf6+ {[%emt 0:00:00]}
Kf8 {[%emt 0:00:04]} 27. Bxc5+ {[%emt 0:01:03]} 1-0

[Event "FIDE Women World Blitz 2021"]
[Site "Warsaw"]
[Date "2021.12.30"]
[Round "12.12"]
[White "Paehtz, Elisabeth"]
[Black "Lach, Aleksandra"]
[Result "1-0"]
[ECO "A80"]
[WhiteElo "2485"]
[BlackElo "2204"]
[Annotator "ChessBase"]
[PlyCount "51"]
[EventDate "2021.12.29"]
[EventType "swiss"]
[EventCountry "POL"]
[Tiebreak "Cut1 Buchholz"]
[SourceTitle "playchess.com"]
[Source "ChessBase"]
[SourceQuality "1"]
[TimeControl "180+2"]

1. d4 {[%emt 0:00:01]} f5 {[%emt 0:00:00]} 2. e3 {[%emt 0:00:03]} Nf6 {[%emt 0:
00:04]} 3. b3 {[%emt 0:00:02]} d6 {[%emt 0:00:05]} 4. Bb2 {[%emt 0:00:02]} g6 {
[%emt 0:00:10]} 5. Be2 {[%emt 0:00:01]} Bg7 {[%emt 0:00:02]} 6. h4 {[%emt 0:00:
01]} h6 {[%emt 0:00:11]} 7. Nh3 {[%emt 0:00:02]} Be6 {[%emt 0:00:35]} 8. c4 {
[%emt 0:00:16]} Bf7 {[%emt 0:00:03]} 9. Nc3 {[%emt 0:00:10]} e5 {[%emt 0:00:25]
} 10. dxe5 {[%emt 0:00:02]} dxe5 {[%emt 0:00:01]} 11. Qxd8+ {[%emt 0:00:02]}
Kxd8 {[%emt 0:00:01]} 12. O-O-O+ {[%emt 0:00:03]} Kc8 {[%emt 0:00:15]} 13. e4 {
[%emt 0:00:13]} Nc6 {[%emt 0:00:09]} 14. f3 {[%emt 0:00:10]} f4 {[%emt 0:00:07]
} 15. Nd5 {[%emt 0:00:07]} Nxd5 {[%emt 0:00:15]} 16. exd5 {[%emt 0:00:02]} Nd4
{[%emt 0:00:02]} 17. Bxd4 {[%emt 0:00:02]} exd4 {[%emt 0:00:01]} 18. Nxf4 {
[%emt 0:00:02]} g5 {[%emt 0:00:07]} 19. hxg5 {[%emt 0:00:04]} hxg5 {[%emt 0:00:
01]} 20. Rxh8+ {[%emt 0:00:02]} Bxh8 {[%emt 0:00:00]} 21. Rh1 {[%emt 0:00:17]}
Be5 {[%emt 0:00:11]} 22. Nd3 {[%emt 0:00:05]} Bf6 {[%emt 0:00:05]} 23. Rh6 {
[%emt 0:00:07]} Bd8 {[%emt 0:00:01]} 24. Ne5 {[%emt 0:00:06]} Be8 {[%emt 0:00:
02]} 25. Rh8 {[%emt 0:00:10]} Bd7 {[%emt 0:00:07]} 26. Nf7 {[%emt 0:00:05]} 1-0

[Event "FIDE Women World Blitz 2021"]
[Site "Warsaw"]
[Date "2021.12.30"]
[Round "12.12"]
[White "Da Silva, Cibele Florencio"]
[Black "Zairbek kyzy, Begimai"]
[Result "0-1"]
[ECO "B11"]
[WhiteElo "1405"]
[BlackElo "1701"]
[Annotator "NA"]
[PlyCount "71"]
[EventDate "2021.12.29"]
[EventType "swiss"]
[EventCountry "POL"]
[Tiebreak "Cut1 Buchholz"]
[SourceTitle "playchess.com"]
[Source "ChessBase"]
[SourceQuality "1"]
[TimeControl "180+2"]

1. e4 {[%emt 0:00:02]} c6 {[%emt 0:00:00]} 2. Nf3 {[%emt 0:00:02]} d5 {[%emt 0:
00:00]} 3. Nc3 {[%emt 0:00:01]} Bg4 {[%emt 0:00:01]} 4. Be2 {[%emt 0:00:02]} e6
{[%emt 0:00:01]} 5. d3 {[%emt 0:00:02]} Nf6 {[%emt 0:00:02]} 6. h3 {[%emt 0:00:
01]} Bh5 {[%emt 0:00:06]} 7. g4 {[%emt 0:00:01]} Bg6 {[%emt 0:00:00]} 8. e5 {
[%emt 0:00:03]} Nfd7 {[%emt 0:00:01]} 9. d4 {[%emt 0:00:02]} c5 {[%emt 0:00:01]
} 10. Be3 {[%emt 0:00:02]} Nc6 {[%emt 0:00:07]} 11. a3 {[%emt 0:00:02]} cxd4 {
[%emt 0:00:08]} 12. Bxd4 {[%emt 0:00:02]} Nxd4 {[%emt 0:00:02]} 13. Qxd4 {
[%emt 0:00:09]} Bxc2 {[%emt 0:00:14]} 14. Rc1 {[%emt 0:00:03]} Bg6 {[%emt 0:00:
02]} 15. Bb5 {[%emt 0:00:02]} a6 {[%emt 0:00:06]} 16. Bxd7+ {[%emt 0:00:05]}
Qxd7 {[%emt 0:00:00]} 17. Qa4 {[%emt 0:00:03]} b5 {[%emt 0:00:39]} 18. Qd4 {
[%emt 0:00:06]} Rc8 {[%emt 0:00:05]} 19. Ke2 {[%emt 0:00:01]} Bc5 {[%emt 0:00:
05]} 20. Qd2 {[%emt 0:00:03]} d4 {[%emt 0:00:10]} 21. Nb1 {[%emt 0:00:44]} O-O
{[%emt 0:00:11]} 22. Nh4 {[%emt 0:00:04]} Be4 {[%emt 0:00:04]} 23. f3 {[%emt 0:
00:02]} Bb7 {[%emt 0:00:08]} 24. Rhd1 {[%emt 0:00:10]} f6 {[%emt 0:00:21]} 25.
b4 {[%emt 0:00:08]} Bb6 {[%emt 0:00:11]} 26. Rxc8 {[%emt 0:00:02]} Qxc8 {
[%emt 0:00:03]} 27. exf6 {[%emt 0:00:09]} Rxf6 {[%emt 0:00:01]} 28. Qd3 {
[%emt 0:00:40]} Bd5 {[%emt 0:00:12]} 29. g5 {[%emt 0:00:02]} Bc4 {[%emt 0:00:
14]} 30. gxf6 {[%emt 0:00:35]} gxf6 {[%emt 0:00:01]} 31. Kd2 {[%emt 0:00:20]}
Bxd3 {[%emt 0:00:02]} 32. Kxd3 {[%emt 0:00:02]} Qc4+ {[%emt 0:00:06]} 33. Kd2 {
[%emt 0:00:03]} d3 {[%emt 0:00:02]} 34. Nc3 {[%emt 0:00:08]} Qxh4 {[%emt 0:00:
04]} 35. Re1 {[%emt 0:00:05]} Qf2+ {[%emt 0:00:06]} 36. Kd1 {[%emt 0:00:06]}
0-1

[Event "FIDE Women World Blitz 2021"]
[Site "Warsaw"]
[Date "2021.12.30"]
[Round "12.13"]
[White "Efroimski, Marsel"]
[Black "Zatonskih, Anna"]
[Result "0-1"]
[ECO "C09"]
[WhiteElo "2419"]
[BlackElo "2394"]
[Annotator "NA"]
[PlyCount "134"]
[EventDate "2021.12.29"]
[EventType "swiss"]
[EventCountry "POL"]
[Tiebreak "Cut1 Buchholz"]
[SourceTitle "playchess.com"]
[Source "ChessBase"]
[SourceQuality "1"]
[TimeControl "180+2"]

1. e4 {[%emt 0:00:00]} e6 {[%emt 0:00:00]} 2. d4 {[%emt 0:00:01]} d5 {[%emt 0:
00:01]} 3. Nd2 {[%emt 0:00:01]} c5 {[%emt 0:00:02]} 4. exd5 {[%emt 0:00:02]}
exd5 {[%emt 0:00:00]} 5. Ngf3 {[%emt 0:00:01]} Nc6 {[%emt 0:00:01]} 6. Bb5 {
[%emt 0:00:01]} Qe7+ {[%emt 0:00:01]} 7. Qe2 {[%emt 0:00:01]} Qxe2+ {[%emt 0:
00:03]} 8. Kxe2 {[%emt 0:00:01]} a6 {[%emt 0:00:01]} 9. Bxc6+ {[%emt 0:00:07]}
bxc6 {[%emt 0:00:01]} 10. Re1 {[%emt 0:00:08]} f6 {[%emt 0:00:04]} 11. Kf1+ {
[%emt 0:00:02]} Kf7 {[%emt 0:00:02]} 12. dxc5 {[%emt 0:00:04]} Bxc5 {[%emt 0:
00:02]} 13. Nb3 Bd6 {[%emt 0:00:23]} 14. h3 {[%emt 0:00:29]} c5 {[%emt 0:01:21]
} 15. c3 {[%emt 0:00:15]} Bf5 {[%emt 0:00:23]} 16. Be3 {[%emt 0:00:01]} c4 {
[%emt 0:00:01]} 17. Nbd4 {[%emt 0:00:06]} Bd3+ {[%emt 0:00:01]} 18. Kg1 {
[%emt 0:00:01]} Ne7 {[%emt 0:00:02]} 19. b4 {[%emt 0:00:11]} cxb3 {[%emt 0:00:
07]} 20. axb3 {[%emt 0:00:02]} Rhc8 {[%emt 0:00:01]} 21. Bd2 {[%emt 0:00:06]}
Be4 {[%emt 0:00:10]} 22. Ra4 {[%emt 0:00:23]} Nc6 {[%emt 0:00:16]} 23. Nxc6 {
[%emt 0:00:05]} Rxc6 {[%emt 0:00:01]} 24. Nd4 {[%emt 0:00:01]} Rcc8 {[%emt 0:
00:19]} 25. f3 {[%emt 0:00:06]} Bd3 {[%emt 0:00:05]} 26. Re3 {[%emt 0:00:24]}
Bb5 {[%emt 0:00:01]} 27. Ra1 {[%emt 0:00:24]} Bf4 {[%emt 0:00:05]} 28. Nf5 {
[%emt 0:00:19]} Bxe3+ {[%emt 0:00:02]} 29. Nxe3 {[%emt 0:00:01]} Ke6 {[%emt 0:
00:03]} 30. Re1 {[%emt 0:00:05]} g6 {[%emt 0:00:02]} 31. Nc4+ {[%emt 0:00:02]}
Kf7 {[%emt 0:00:08]} 32. Nd6+ {[%emt 0:00:01]} Kf8 {[%emt 0:00:03]} 33. Bh6+ {
[%emt 0:00:02]} Kg8 {[%emt 0:00:01]} 34. Nxc8 {[%emt 0:00:06]} Rxc8 {[%emt 0:
00:00]} 35. Bd2 {[%emt 0:00:07]} Kf7 {[%emt 0:00:02]} 36. Kf2 {[%emt 0:00:02]}
Re8 {[%emt 0:00:02]} 37. Be3 {[%emt 0:00:04]} g5 {[%emt 0:00:03]} 38. g4 {
[%emt 0:00:03]} Kg6 {[%emt 0:00:02]} 39. Rd1 {[%emt 0:00:02]} Re5 {[%emt 0:00:
07]} 40. Rd2 {[%emt 0:00:08]} f5 {[%emt 0:00:04]} 41. Bd4 {[%emt 0:00:01]} Re8
{[%emt 0:00:00]} 42. Rc2 {[%emt 0:00:04]} h5 {[%emt 0:00:03]} 43. c4 {[%emt 0:
00:02]} dxc4 {[%emt 0:00:01]} 44. bxc4 {[%emt 0:00:01]} Rc8 {[%emt 0:00:03]}
45. c5 {[%emt 0:00:02]} fxg4 {[%emt 0:00:01]} 46. hxg4 {[%emt 0:00:01]} hxg4 {
[%emt 0:00:03]} 47. fxg4 {[%emt 0:00:01]} Rd8 {[%emt 0:00:02]} 48. Be3 {
[%emt 0:00:03]} Rf8+ {[%emt 0:00:01]} 49. Kg1 {[%emt 0:00:10]} Rf3 {[%emt 0:00:
02]} 50. Bf2 {[%emt 0:00:02]} Rf4 {[%emt 0:00:05]} 51. c6 {[%emt 0:00:04]}
Rxg4+ {[%emt 0:00:02]} 52. Kh2 {[%emt 0:00:01]} Rc4 {[%emt 0:00:02]} 53. Rxc4 {
[%emt 0:00:01]} Bxc4 {[%emt 0:00:00]} 54. c7 {[%emt 0:00:01]} Be6 {[%emt 0:00:
01]} 55. Bb6 {[%emt 0:00:03]} Kf5 {[%emt 0:00:01]} 56. Kg3 {[%emt 0:00:01]} Ke4
{[%emt 0:00:02]} 57. Ba5 {[%emt 0:00:03]} Kd3 {[%emt 0:00:02]} 58. Kf3 {
[%emt 0:00:05]} g4+ {[%emt 0:00:02]} 59. Kf4 {[%emt 0:00:01]} Kc4 {[%emt 0:00:
02]} 60. Be1 {[%emt 0:00:04]} Bc8 {[%emt 0:00:03]} 61. Ke5 {[%emt 0:00:01]} Kb5
{[%emt 0:00:03]} 62. Kd6 {[%emt 0:00:04]} a5 {[%emt 0:00:01]} 63. Ke7 {[%emt 0:
00:00]} a4 {[%emt 0:00:02]} 64. Kd8 {[%emt 0:00:02]} Bf5 {[%emt 0:00:00]} 65.
Ke7 {[%emt 0:00:02]} a3 {[%emt 0:00:02]} 66. Kf6 {[%emt 0:00:01]} Bc8 {[%emt 0:
00:01]} 67. Kg5 {[%emt 0:00:01]} a2 {[%emt 0:00:01]} 0-1

[Event "FIDE Women World Blitz 2021"]
[Site "Warsaw"]
[Date "2021.12.30"]
[Round "12.14"]
[White "Kovanova, Baira"]
[Black "Muzychuk, Mariya"]
[Result "1-0"]
[ECO "B50"]
[WhiteElo "2331"]
[BlackElo "2536"]
[Annotator "ChessBase"]
[PlyCount "49"]
[EventDate "2021.12.29"]
[EventType "swiss"]
[EventCountry "POL"]
[Tiebreak "Cut1 Buchholz"]
[SourceTitle "playchess.com"]
[Source "ChessBase"]
[SourceQuality "1"]
[TimeControl "180+2"]

1. e4 {[%emt 0:00:01]} c5 {[%emt 0:00:00]} 2. Nf3 {[%emt 0:00:01]} e6 {[%emt 0:
00:01]} 3. d3 {[%emt 0:00:02]} Nc6 {[%emt 0:00:01]} 4. g3 {[%emt 0:00:01]} Nf6
{[%emt 0:00:01]} 5. Bg2 {[%emt 0:00:01]} d6 {[%emt 0:00:02]} 6. O-O {[%emt 0:
00:10]} Be7 {[%emt 0:00:01]} 7. Nc3 {[%emt 0:00:17]} O-O {[%emt 0:00:03]} 8. d4
{[%emt 0:00:02]} cxd4 {[%emt 0:00:04]} 9. Nxd4 {[%emt 0:00:02]} Bd7 {[%emt 0:
00:01]} 10. Be3 {[%emt 0:00:03]} a6 {[%emt 0:00:11]} 11. a4 {[%emt 0:00:07]}
Rc8 {[%emt 0:00:13]} 12. Nxc6 {[%emt 0:00:26]} Bxc6 {[%emt 0:00:03]} 13. h3 {
[%emt 0:00:03]} b6 {[%emt 0:00:59]} 14. Qe2 {[%emt 0:00:04]} b5 {[%emt 0:00:35]
} 15. axb5 {[%emt 0:00:54]} axb5 {[%emt 0:00:01]} 16. Nxb5 {[%emt 0:00:11]}
Bxe4 {[%emt 0:00:01]} 17. c4 {[%emt 0:00:04]} Bxg2 {[%emt 0:00:05]} 18. Kxg2 {
[%emt 0:00:01]} d5 {[%emt 0:00:07]} 19. cxd5 {[%emt 0:00:11]} Qxd5+ {[%emt 0:
00:08]} 20. Kh2 {[%emt 0:00:00]} Rb8 {[%emt 0:00:04]} 21. Nc3 {[%emt 0:00:07]}
Qb3 {[%emt 0:00:03]} 22. Ra7 {[%emt 0:00:11]} Bb4 {[%emt 0:00:17]} 23. Bd4 {
[%emt 0:00:04]} Nd5 {[%emt 0:00:29]} 24. Qe5 {[%emt 0:00:12]} Nf6 {[%emt 0:00:
11]} 25. Ne4 {[%emt 0:00:02]} 1-0

[Event "FIDE Women World Blitz 2021"]
[Site "Warsaw"]
[Date "2021.12.30"]
[Round "12.15"]
[White "Osmak, Yuliia"]
[Black "Maltsevskaya, Aleksandra"]
[Result "1-0"]
[ECO "E92"]
[WhiteElo "2198"]
[BlackElo "2411"]
[Annotator "NA"]
[PlyCount "125"]
[EventDate "2021.12.29"]
[EventType "swiss"]
[EventCountry "POL"]
[Tiebreak "Cut1 Buchholz"]
[SourceTitle "playchess.com"]
[Source "ChessBase"]
[SourceQuality "1"]
[TimeControl "180+2"]

1. c4 {[%emt 0:00:02]} Nf6 {[%emt 0:00:03]} 2. Nc3 {[%emt 0:00:01]} e5 {
[%emt 0:00:06]} 3. Nf3 {[%emt 0:00:03]} Nc6 {[%emt 0:00:01]} 4. e4 {[%emt 0:00:
01]} g6 {[%emt 0:00:11]} 5. d4 {[%emt 0:00:09]} exd4 6. Nxd4 {[%emt 0:00:01]}
Bg7 {[%emt 0:00:05]} 7. Be3 {[%emt 0:00:04]} d6 {[%emt 0:00:08]} 8. Be2 {
[%emt 0:00:02]} O-O {[%emt 0:00:03]} 9. Nxc6 {[%emt 0:00:17]} bxc6 {[%emt 0:00:
02]} 10. O-O {[%emt 0:00:03]} Re8 {[%emt 0:00:05]} 11. Qc2 {[%emt 0:01:09]} Qe7
{[%emt 0:00:08]} 12. Bf3 {[%emt 0:00:34]} Bg4 {[%emt 0:00:01]} 13. Bxg4 {
[%emt 0:00:16]} Nxg4 {[%emt 0:00:02]} 14. Rae1 {[%emt 0:00:08]} a5 {[%emt 0:00:
17]} 15. h3 {[%emt 0:00:13]} Nf6 {[%emt 0:00:38]} 16. Bg5 {[%emt 0:00:05]} h6 {
[%emt 0:00:08]} 17. Bh4 {[%emt 0:00:00]} Qe6 {[%emt 0:00:19]} 18. b3 {[%emt 0:
00:03]} Nh5 {[%emt 0:00:16]} 19. f3 {[%emt 0:00:11]} Qe5 {[%emt 0:00:10]} 20.
Ne2 {[%emt 0:00:04]} a4 {[%emt 0:00:02]} 21. Bf2 {[%emt 0:00:07]} axb3 {
[%emt 0:00:02]} 22. axb3 Nf4 {[%emt 0:00:12]} 23. Nxf4 {[%emt 0:00:02]} Qxf4 {
[%emt 0:00:01]} 24. Be3 {[%emt 0:00:02]} Qg3 {[%emt 0:00:02]} 25. Bf2 {[%emt 0:
00:02]} Qg5 {[%emt 0:00:01]} 26. Be3 {[%emt 0:00:01]} Qe5 {[%emt 0:00:02]} 27.
Rd1 {[%emt 0:00:03]} Ra3 {[%emt 0:00:28]} 28. Bd4 {[%emt 0:00:02]} Qa5 {
[%emt 0:00:01]} 29. Bxg7 Kxg7 {[%emt 0:00:00]} 30. Qb2+ {[%emt 0:00:04]} Kg8 {
[%emt 0:00:04]} 31. Ra1 {[%emt 0:00:03]} Qb6+ {[%emt 0:00:05]} 32. Kh2 {
[%emt 0:00:04]} Rxb3 {[%emt 0:00:00]} 33. Qf6 {[%emt 0:00:03]} Qc5 {[%emt 0:00:
03]} 34. Rfc1 {[%emt 0:00:05]} Rb4 {[%emt 0:00:12]} 35. Qc3 {[%emt 0:00:03]}
Reb8 {[%emt 0:00:03]} 36. Ra6 {[%emt 0:00:03]} Rb2 {[%emt 0:00:04]} 37. Qf6 {
[%emt 0:00:03]} Qf2 {[%emt 0:00:02]} 38. Rg1 {[%emt 0:00:01]} Qc5 {[%emt 0:00:
04]} 39. Raa1 {[%emt 0:00:02]} Rc2 {[%emt 0:00:02]} 40. Qe7 {[%emt 0:00:01]}
Rxc4 {[%emt 0:00:02]} 41. Qxc7 {[%emt 0:00:02]} Qe5+ {[%emt 0:00:03]} 42. Kh1 {
[%emt 0:00:01]} Re8 {[%emt 0:00:02]} 43. Ra7 {[%emt 0:00:01]} Qf6 {[%emt 0:00:
01]} 44. Qd7 {[%emt 0:00:02]} Rf8 {[%emt 0:00:02]} 45. Rc7 {[%emt 0:00:01]} c5
{[%emt 0:00:01]} 46. Rc6 {[%emt 0:00:01]} Rd4 {[%emt 0:00:00]} 47. Rc7 {
[%emt 0:00:02]} Rd3 {[%emt 0:00:01]} 48. Rc6 {[%emt 0:00:02]} Qf4 {[%emt 0:00:
02]} 49. Rc7 {[%emt 0:00:03]} h5 {[%emt 0:00:01]} 50. Qb5 {[%emt 0:00:02]} Rd4
{[%emt 0:00:04]} 51. Rd7 {[%emt 0:00:03]} Kg7 {[%emt 0:00:01]} 52. Qc6 {
[%emt 0:00:03]} h4 {[%emt 0:00:01]} 53. Qc7 {[%emt 0:00:02]} Ra8 {[%emt 0:00:
02]} 54. Qb7 {[%emt 0:00:04]} Ra2 {[%emt 0:00:02]} 55. Qb3 {[%emt 0:00:01]}
Rad2 {[%emt 0:00:06]} 56. Qb7 {[%emt 0:00:02]} Rd1 {[%emt 0:00:01]} 57. Qb3 {
[%emt 0:00:03]} Rxg1+ {[%emt 0:00:02]} 58. Kxg1 {[%emt 0:00:01]} c4 {[%emt 0:
00:01]} 59. Qc3 {[%emt 0:00:02]} Qe5 {[%emt 0:00:08]} 60. Kf2 {[%emt 0:00:00]}
Qf6 {[%emt 0:00:02]} 61. Rc7 {[%emt 0:00:00]} Qe5 {[%emt 0:00:02]} 62. Rxc4 {
[%emt 0:00:00]} Qg3+ {[%emt 0:00:01]} 63. Kg1 {[%emt 0:00:00]} 1-0